Cogmind - Beta 10.2 @@@ ROGUE MODE // 2021.07.24 @ 15:10:31 Player: Plexion Result: Destroyed by as-03920 with Assembled Blade Performance ------------- Evolutions (0) 0 Regions Visited (2) 400 Robots Destroyed (13) 65 Value Destroyed (380) 380 Prototype IDs (1) 20 Alien Tech Used (0) 0 Bonus (0) 0 TOTAL SCORE: 865 Bonus ------- None Cogmind --------- Core Integrity 0/250 Matter 259/300 Energy 19/100 System Corruption 0% Temperature Cool (0) Movement Treading (180) Ox1 Location -10/Mines Parts ------- > --- POWER (1) -------- (None) > --- PROPULSION (2) --- Light Treads Light Treads > --- UTILITY (2) ------ Large Storage Unit High-capacity Storage Unit > --- WEAPON (2) ------- Heavy EM Pulse Gun Assault Rifle > --- INVENTORY (18) --- Light Treads Compact Wheel Compact Wheel Medium Storage Unit Light Armor Plating Thief Drone Bay (3/3) EM Pulse Gun Heavy EM Pulse Gun Light Assault Rifle Light Cannon Plasma Cutter Plasma Cutter Peak State ------------ > --- POWER ------------ Light Ion Engine > --- PROPULSION ------- Light Treads Light Treads > --- UTILITY ---------- High-capacity Storage Unit Thief Drone Bay > --- WEAPON ----------- Heavy EM Pulse Gun Heavy EM Pulse Gun > --- INVENTORY -------- Light Treads Compact Wheel Compact Wheel Medium Storage Unit Large Storage Unit Light Armor Plating Heavy EM Pulse Gun Heavy EM Pulse Gun Light Assault Rifle Light Cannon Plasma Cutter Plasma Cutter [Rating: 16] Favorites ----------- Power Light Ion Engine Engine Light Ion Engine Propulsion Light Treads Treads Light Treads Wheel Compact Wheel Utility High-capacity Storage Unit Device Thief Drone Bay Storage High-capacity Storage Unit Weapon EM Pulse Gun Energy Gun EM Pulse Gun Ballistic Gun Assault Rifle Build | -11 -10 -10 ------- Run | Scr Mat Min Slots Evolved . | . . . Power . | . . . Propulsion . | . . . Utility . | . . . Weapon . | . . . Parts Attached 23 | 8 11 4 Power 2 | 1 1 . Engine 2 | 1 1 . Core . | . . . Reactor . | . . . Propulsion 8 | 4 4 . Treads 5 | 2 3 . Leg . | . . . Wheel 3 | 2 1 . Hover . | . . . Flight . | . . . Utility 6 | 1 3 2 Device 1 | . . 1 Storage 5 | 1 3 1 Processor . | . . . Hackware . | . . . Protection . | . . . Artifact . | . . . Weapon 7 | 2 3 2 Energy Gun 6 | 2 3 1 Energy Cannon . | . . . Ballistic Gun 1 | . . 1 Ballistic Cannon . | . . . Launcher . | . . . Special Weapon . | . . . Impact Weapon . | . . . Slashing Weapon . | . . . Piercing Weapon . | . . . Special Melee Weapon . | . . . Unidentified Prototypes 1 | . . 1 Parts Lost 6 | . 3 3 Power 2 | . 1 1 Propulsion 1 | . 1 . Utility . | . . . Weapon 3 | . 1 2 Highest Loss Streak 3 | . 2 3 Average Slot Usage (%) 99 | . 99 98 Engine 13 | . 13 13 Treads 24 | . 23 28 Wheel 3 | . 4 . Storage 28 | . 28 28 Energy Gun 27 | . 28 27 Naked Turns . | . . . Heaviest Build 57 | 11 57 57 Greatest Support 40 | 40 40 40 Greatest Overweight (x) 3 | 1 3 1 Average Overweight (x) 1 | . 1 1 Largest Inventory Capacity 18 | 6 18 18 Average Capacity 16 | 5 17 17 Most Carried 14 | 4 11 14 Average Carried 7 | 2 5 12 Final Capacity 18 | 6 18 18 Final Carried 12 | 4 11 12 Class Distribution -------------------- 100% | Mutant Dominant Class ---------------- Mutant | -10/Materials Mutant | -10/Mines Resources | -11 -10 -10 ----------- Run | Scr Mat Min Matter Collected 369 | 267 75 27 Remotely . | . . . Salvage Created 519 | . 519 . Parts 24 | . 24 . Haulers Intercepted 1 | . 1 . Recyclers Shooed . | . . . Parts Field Recycled . | . . . Retrieved Matter . | . . . Parts Self-Destructed . | . . . Prevented . | . . . Kills | -11 -10 -10 ------- Run | Scr Mat Min Combat Hostiles Destroyed 11 | . 11 . Guns 9 | . 9 . AOE 2 | . 2 . Classes Destroyed 4 | . 4 . Hauler 1 | . 1 . Watcher 1 | . 1 . Swarmer 2 | . 2 . Grunt 9 | . 9 . Best Kill Streak 5 | . 5 . Combat Bots Only 5 | . 5 . Max Kills in Single Turn 1 | . 1 . Gunslinging . | . . . Exploded 1 | . 1 . Melee . | . . . Uniques/NPCs Destroyed . | . . . Combat | -11 -10 -10 -------- Run | Scr Mat Min Damage Taken 914 | . 542 372 Core 270 | . 129 141 Absorbed by Shields . | . . . Core Remaining (%) 100 | 100 . . Volleys Fired 38 | . 33 5 Largest 2 | . 2 2 Hottest 90 | . 80 90 Shots Fired 74 | . 66 8 Gun 74 | . 66 8 Cannon . | . . . Launcher . | . . . Special . | . . . Kinetic 1 | . . 1 Thermal . | . . . Explosive . | . . . Electromagnetic 73 | . 66 7 Robot Hit Streak 7 | . 7 4 Robot Miss Streak 2 | . 2 2 Penetration Max . | . . . Secondary Targets 2 | . 2 . Max Gunslinging Chain 1 | . 1 . Shots Hit Robots 50 | . 44 6 Core Hits 25 | 1 22 2 Critical Hits . | . . . Critical Kills . | . . . Critical Parts Destroyed . | . . . Melee Attacks . | . . . Impact . | . . . Slashing . | . . . Piercing . | . . . Sneak Attacks . | . . . Combat Hostiles . | . . . Follow-up Attacks . | . . . Damage Inflicted 879 | 5 810 64 Guns 626 | . 562 64 Cannons . | . . . Explosions 248 | . 248 . Melee . | . . . Ramming 5 | 5 . . Kinetic 10 | . . 10 Thermal 248 | . 248 . Explosive . | . . . Electromagnetic 616 | . 562 54 Impact . | . . . Slashing . | . . . Piercing . | . . . Highest Corruption . | . . . Average Corruption . | . . . Corruption Purged . | . . . Overload Shots . | . . . Overflow Damage . | . . . Projectiles . | . . . Explosions . | . . . Melee . | . . . Knockbacks . | . . . Impact . | . . . Kinetic . | . . . Secondary . | . . . Self-Inflicted Damage 25 | . 25 . Shots 1 | . 1 . Rammed 1 | 1 . . Targets Rammed 1 | 1 . . Kicked . | . . . Crushed . | . . . Highest Temperature 268 | . 268 50 Average Temperature 79 | . 84 31 Received Heat Transfer 198 | . 198 . Siege Activations . | . . . Robots Corrupted . | . . . Combat Hostiles . | . . . Parts Fried 3 | . 3 . Impact Corruptions . | . . . Robots Melted . | . . . Combat Hostiles . | . . . Parts Melted . | . . . Heat Transferred 350 | . 350 . Parts Sabotaged . | . . . Parts Stolen . | . . . Parts Stripped . | . . . Power Chain Reactions 4 | . 4 . Missiles Intercepted . | . . . Alert | -11 -10 -10 ------- Run | Scr Mat Min Peak Influence 367 | . 367 38 Initial 38 | . . 38 Average 128 | . 166 37 Maximum Alert Level 1 | . 1 . Low Security (%) 62 | 100 48 100 Level 1 37 | . 51 . Level 2 . | . . . Level 3 . | . . . Level 4 . | . . . Level 5 . | . . . High Security . | . . . Max Security . | . . . Squads Dispatched 3 | . 3 . Investigation . | . . . Extermination . | . . . Reinforcement 3 | . 3 . Assault . | . . . Garrison . | . . . Intercept . | . . . Construction Impeded . | . . . Haulers Reinforced . | . . . Stealth | -11 -10 -10 --------- Run | Scr Mat Min Distress Signals 6 | . 5 1 Communications Jammed . | . . . Distress Signals . | . . . Times Spotted 27 | . 23 4 Peak Tracking Total 6 | . 6 4 Tactical Retreats 4 | . 4 . Traps | -11 -10 -10 ------- Run | Scr Mat Min Traps Triggered 2 | . 2 . Indirectly . | . . . Trap Hack Attempts . | . . . Triggered . | . . . Disarmed . | . . . Reprogrammed . | . . . Reused . | . . . Traps Extracted . | . . . Installed . | . . . Triggered . | . . . Machines | -11 -10 -10 ---------- Run | Scr Mat Min Machines Disabled 1 | . 1 . Max in Single Turn 1 | . 1 . Machines Sabotaged . | . . . Garrisons Compromised . | . . . Overloaded Fab Kills . | . . . Fab Network Shutdowns . | . . . Hacking | -11 -10 -10 --------- Run | Scr Mat Min Machines Accessed 1 | . . 1 Terminals . | . . . Fabricators . | . . . Repair Stations . | . . . Recycling Units . | . . . Scanalyzers . | . . . Garrison Access . | . . . Total Hacks 1 | . . 1 Successful 1 | . . 1 Failed . | . . . Catastrophic . | . . . Database Lockouts . | . . . Manual . | . . . Terminals . | . . . Fabricators . | . . . Repair Stations . | . . . Recycling Units . | . . . Scanalyzers . | . . . Garrison Access . | . . . Terminal Hacks 1 | . . 1 Open Door 1 | . . 1 Fabricator Hacks . | . . . Repair Station Hacks . | . . . Recycling Unit Hacks . | . . . Scanalyzer . | . . . Garrison Access Hacks . | . . . Unauthorized Hacks . | . . . Terminals . | . . . Fabricators . | . . . Repair Stations . | . . . Recycling Units . | . . . Scanalyzers . | . . . Garrison Access . | . . . Data Cores Recovered . | . . . Used . | . . . Hacking Detections . | . . . Full Trace Events . | . . . Feedback Events . | . . . Feedback Blocked . | . . . Robot Schematics Acquired . | . . . Robots Built . | . . . Matter . | . . . Time . | . . . Total Robot Build Rating . | . . . Part Schematics Acquired . | . . . Parts Built . | . . . Matter . | . . . Time . | . . . Total Part Build Rating . | . . . Parts Repaired . | . . . Time . | . . . Parts Recycled . | . . . Recycled Matter . | . . . Retrieved Matter . | . . . Retrieved Components . | . . . Parts Scanalyzed . | . . . Part Schematics Acquired . | . . . Parts Damaged . | . . . Bothacking | -11 -10 -10 ------------ Run | Scr Mat Min Used RIF Installer . | . . . Robots Hacked . | . . . Non-combat . | . . . Combat . | . . . Robot Hacks Applied . | . . . Relay Couplers Released . | . . . Robots Rewired . | . . . Allies Hacked . | . . . Hacks Repelled . | . . . Allies | -11 -10 -10 -------- Run | Scr Mat Min Total Allies . | . . . Largest Group . | . . . Highest-Rated Group . | . . . Highest-Rated Ally . | . . . Total Orders . | . . . Ally Attacks . | . . . Total Damage . | . . . Kills . | . . . Allies Corrupted . | . . . Allies Melted . | . . . Intel | -11 -10 -10 ------- Run | Scr Mat Min Robot Analysis Total . | . . . Derelict Logs Recovered . | . . . Drone Launches . | . . . Drone Recoveries . | . . . Exploration | -11 -10 -10 ------------- Run | Scr Mat Min Turns Passed 1403 | 101 1021 281 Spaces Moved 659 | 57 470 132 Core 2 | 2 . . Treads 622 | 49 441 132 Legs . | . . . Wheels 35 | 6 29 . Hover . | . . . Flight . | . . . Fastest Speed 50 | 50 130 180 Average Speed 178 | 150 181 180 Slowest Speed 200 | 160 200 180 Overloaded Moves . | . . . Propulsion Burnouts . | . . . Robots Hopped . | . . . Cave-ins Triggered . | . . . Exploration Rate (%) 43 | 4 94 32 Regions Visited 2 Branch Regions 1 Pre-discovered Areas . | . . . Known Exits Taken . | . . . Unknown Exits Taken 2 | 1 1 . Scrap Searched 1 | . . 1 Spaces Dug . | . . . Terrain Destroyed 10 | . 10 . Melee . | . . . Projectile . | . . . AOE 10 | . 10 . Terrain Rammed . | . . . Walls Destroyed . | . . . Machines Disabled . | . . . Actions | -11 -10 -10 --------- Run | Scr Mat Min Total 807 | 69 570 168 Wait 66 | . 44 22 Move 658 | 57 469 132 Hop . | . . . Pick Up 13 | 2 8 3 Fast Attach 12 | 8 3 1 Attach 6 | . 3 3 Detach 4 | 2 1 1 Swap 5 | . 5 . Drop 5 | . 4 1 Fire 38 | . 33 5 Melee . | . . . Ram . | . . . Kick . | . . . Crush . | . . . Escape Stasis . | . . . Rewire . | . . . Trap . | . . . Miscellaneous . | . . . Route ------- -11/Scrapyard -10/Materials (discovered 3 exits: [*Mat x2] / *Min) -10/Mines History --------- Turn | Location | Event 9 | -11/Scrapyard | Discovered new exit (range 16) 102 | -11/Scrapyard | Entered Materials 216 | -10/Materials | Discovered new exit (range 6) 340 | -10/Materials | Build established: Mutant 579 | -10/Materials | Discovered new exit (range 16) 752 | -10/Materials | Core integrity fell below 50% 810 | -10/Materials | Discovered new exit (range 10) 1123 | -10/Materials | Entered Mines 1202 | -10/Mines | Found the Drone Emporium 1210 | -10/Mines | Found Prototype Device 1210 | -10/Mines | Identified Thief Drone Bay 1304 | -10/Mines | Assembled infested the area 1399 | -10/Mines | Core integrity fell below 20% 1404 | -10/Mines | Destroyed by as-03920 with Assembled Blade Last Messages --------------- 01210_ Identified Thief Drone Bay. 01212_ Dropped Thief Drone Bay. 01213_ Acquired Thief Drone Bay. 01234_ Acquired Assault Rifle. 01237_ Acquired EM Pulse Gun. 01244_ K-01 Serf collects debris. 01304_ ALERT: Infestation in the mines, dispatching Demolisher response squad. 01317_ K-01 Serf collects debris. 01355_ K-01 Serf cleans the Pressure Siphon. 01361_ K-01 Serf collects debris. 01388_ Pressure Siphon disabled. 01390_ Lgt. Ion Engine destroyed. 01394_ T-07 Excavator destroyed. 01396_ Hvy. EM Pulse Gun destroyed. 01396_ R-06 Scavenger destroyed. 01398_ D-53 Grenadier destroyed. 01399_ K-01 Serf collects debris. 01401_ Hvy. EM Pulse Gun destroyed. 01403_ K-01 Serf collects debris. Map ----- +----------------------------------------------------+ | ???????????????????????????????????????????????? | | ???????????????????????????????????????????????? | | ???????????????????????????????????????????????? | | ???????????????????????????????????????????????? | | ???????????????????????????????????????????????? | | ???????????????????????????????????????????????? | | ???????????????????????????????????????????????? | | ???????????????????????????????????????????????? | | ?####??????????????????????????????????????????? | | ## ##?????????????????????????????????????????? | | ##????????????????????????????????????????? | | ##???????????????????????????????????????? | | ## ##??????????????????????????????????????? | | ?#### #?????????????????####?????????????????? | | ????## #????????????????## #####?????????????? | | ?????# #????????????????# #?????????????? | | ????## #???????????????## #?????????????? | | #### #############?### ## #?????????????? | | ### ### #?????????????? | | ############ ## a##?# #?????????????? | | ###??????????#*%= ##?#% #?????????????? | | #####?????????????# k """ ### %#?????????????? | | ??????????????????#### """% ## ?????????????? | | ???????????????????## ! # =?????????????? | | ??????????????????## aa # =?????????????? | | ??????????????????# @ ## ????????????? | | ???????????????# #?# ????????????? | | ???????????? % #??#%????????????? | | ??????????? ### ##???!????????????? | | ??????????? ?#??# ##???? ???????????? | | ????????????????????# ##?????? ???????????? | | ????????????????????# ???????????????????? | | ????????????????????## ???????????????????? | | ?????????????????????### ???????????????????? | | ???????????????????????## ??????????????????? | | ????????????????????????? ??????????????????? | | ?????????????????????????# ??????????????????? | | ?????????????????????????? ??????????????????? | | ?????????????????????????? ?????????????????? | | ?????????????????????????? ?????????????????? | | ??????????????????????????# ???????????????????? | | ???????????????????????????????????????????????? | | ???????????????????????????????????????????????? | | ???????????????????????????????????????????????? | | ???????????????????????????????????????????????? | | ???????????????????????????????????????????????? | | ???????????????????????????????????????????????? | | ???????????????????????????????????????????????? | | ???????????????????????????????????????????????? | | ???????????????????????????????????????????????? | +----------------------------------------------------+ Best States ------------- Heat Dissipation 25 Energy Generation 10 Energy Capacity 125 Matter Stores 300 Matter Capacity 300 Sight Range 16 Terrain Scan Density 10 Evasion (%) 40 Recoil Reduction 2 Item Schematics ----------------- None Robot Schematics ------------------ None Fabricated ------------ Nothing Alien Tech Used ----------------- None Achievements -------------- None Challenges ------------ None Game ------ Seed ModifiedBurstSabre Manual? 0 Play Time 00:07:27 Cumulative 202.5 hours Start 2021.07.24 @ 15:03:42 End 2021.07.24 @ 15:10:31 Sessions 1 Manual Loads 0 Difficulty Rogue Special Mode None Game No. 261 Rogue 174 Adventurer 87 Explorer 0 Win Type - Total 4 Types 3/0/0/1/0/0/0/0/0 Lore% 69 Gallery% 77 Achievement% 62 Wizard Run 0 Options --------- ASCII 0 Keyboard 1 Movement Numpad Keybinds 0 Fullscreen 1 Font 18/Smallcaps Map View 76x50 Tactical HUD 1 Map Filters NONE Filters NONE Steam 1 RUN: 2fed0fdf-dc3d-49ba-9d59-d0dc091497cc